Cogmind - Beta 13 @@@ ROGUE MODE // 2024.03.31 @ 05:15:07 Player: oberon720 Result: Destroyed by G-47 Trooper with Particle Gun Performance ------------- Evolutions (2) 1000 Regions Visited (5) 1000 Robots Destroyed (114) 570 Value Destroyed (3213) 3213 Prototype IDs (0) 0 Alien Tech Used (0) 0 Bonus (236) 236 TOTAL SCORE: 6019 Bonus ------- High Alert Combat Kills 236 Cogmind --------- Core Integrity 0/550 Matter 30/300 Energy 35/100 System Corruption 0% Temperature Cool (9) Movement Core (200) Ox3 Location -8/Materials Parts ------- > --- POWER (1) -------- (None) > --- PROPULSION (3) --- (None) > --- UTILITY (5) ------ High-capacity Storage Unit Advanced Weight Redist. System Targeting Computer System Shield > --- WEAPON (2) ------- (None) > --- INVENTORY (20) --- Improved Heat Sink Improved Heat Sink Advanced Visual Processing Unit Improved Sensor Array Improved Signal Interpreter Improved Terrain Scanner Shock Rifle High-powered Shotgun High-powered Shotgun Grenade Launcher Datajack Peak State ------------ > --- POWER ------------ Light Deuterium Engine > --- PROPULSION ------- Light Treads Light Treads Improved Treads > --- UTILITY ---------- Improved Heat Sink High-capacity Storage Unit Targeting Computer Hardened Light Armor Plating Hardened Light Armor Plating > --- WEAPON ----------- Heavy EM Pulse Gun Heavy EM Pulse Gun > --- INVENTORY -------- Armored Wheel Armored Wheel Improved Heat Sink Advanced Weight Redist. System Improved Terrain Scanner Propulsion Shielding Light Armor Plating Light Armor Plating Heavy EM Pulse Gun Heavy EM Pulse Gun Heavy Assault Rifle Heavy Assault Rifle Autogun High-powered Shotgun High-powered Shotgun Grenade Launcher Grenade Launcher Rocket Launcher Improved Grenade Launcher Datajack [Rating: 24] Favorites ----------- Power Light Ion Engine Engine Light Ion Engine Power Core Light Nuclear Core Propulsion Light Treads Treads Light Treads Leg Carbon-fiber Leg Wheel Armored Wheel Utility Targeting Computer Device Advanced Weight Redist. System Storage High-capacity Storage Unit Processor Targeting Computer Hackware System Shield Protection Hardened Light Armor Plating Weapon Grenade Launcher Energy Gun Medium Laser Ballistic Gun High-powered Shotgun Launcher Grenade Launcher Special Melee Weapon Datajack Build | -11 -10 -10 -9 -9 -8 ------- Run | Yrd Mat Min Mat Min Mat Slots Evolved 4 | . . . 2 . 2 Power . | . . . . . . Propulsion 1 | . . . 1 . . Utility 3 | . . . 1 . 2 Weapon . | . . . . . . Parts Attached 76 | 6 9 4 16 1 40 Power 13 | 1 2 2 4 . 4 Engine 11 | 1 1 2 4 . 3 Core 2 | . 1 . . . 1 Reactor . | . . . . . . Propulsion 18 | 2 2 . 5 . 9 Treads 12 | 2 2 . 5 . 3 Leg 2 | . . . . . 2 Wheel 4 | . . . . . 4 Hover . | . . . . . . Flight . | . . . . . . Utility 19 | 1 3 . 2 . 13 Device 6 | . . . . . 6 Storage 3 | 1 2 . . . . Processor 1 | . 1 . . . . Hackware 1 | . . . . . 1 Protection 8 | . . . 2 . 6 Artifact . | . . . . . . Weapon 26 | 2 2 2 5 1 14 Energy Gun 6 | 1 . . 1 . 4 Energy Cannon . | . . . . . . Ballistic Gun 11 | 1 1 1 2 1 5 Ballistic Cannon . | . . . . . . Launcher 8 | . 1 1 2 . 4 Special Weapon . | . . . . . . Impact Weapon . | . . . . . . Slashing Weapon . | . . . . . . Piercing Weapon . | . . . . . . Special Melee Weapon 1 | . . . . . 1 Unidentified Prototypes . | . . . . . . Parts Lost 36 | . . 1 6 . 29 Power 4 | . . . 1 . 3 Propulsion 8 | . . . 2 . 6 Utility 10 | . . . . . 10 Weapon 14 | . . 1 3 . 10 Highest Loss Streak 14 | . . 1 2 . 14 To Critical Strikes . | . . . . . . Average Slot Usage (%) 91 | . 97 100 93 100 73 Engine 9 | . 12 6 10 11 4 Core 2 | . 1 7 . . . Treads 23 | . 27 28 28 33 7 Leg 1 | . . . . . 6 Device 2 | . . . . . 12 Storage 12 | . 14 14 11 11 9 Processor 11 | . 12 14 11 11 9 Protection 4 | . . . 9 11 8 Energy Gun 4 | . 12 . . . 4 Ballistic Gun 9 | . 4 14 16 22 2 Launcher 8 | . 10 14 5 . 5 Naked Turns . | . . . . . . Heaviest Build 62 | 14 50 50 56 56 62 Greatest Support 63 | 40 40 40 60 60 63 Greatest Overweight (x) 4 | . 2 1 2 . 4 Average Overweight (x) . | . . 1 . . 1 Largest Inventory Capacity 20 | 8 20 20 20 20 20 Average Capacity 18 | 7 16 20 20 20 20 Most Carried 20 | 2 7 8 20 20 20 Average Carried 9 | . 3 6 12 19 13 Final Capacity 20 | 8 20 20 20 20 20 Final Carried 20 | . 6 8 20 20 11 Class Distribution -------------------- 79% | Mutant 20% | Scavenger-Mutant Dominant Class ---------------- Mutant | -10/Materials Mutant | -10/Mines Mutant | -9/Materials Scavenger-Mutant | -9/Mines Mutant | -8/Materials Resources | -11 -10 -10 -9 -9 -8 ----------- Run | Yrd Mat Min Mat Min Mat Matter Collected 2292 | 203 278 467 876 . 468 Remotely . | . . . . . . Salvage Created 3101 | . 443 496 929 . 1233 Parts 201 | . 28 39 62 . 72 Haulers Intercepted 2 | . . . 2 . . Recyclers Shooed 1 | . . 1 . . . Parts Field Recycled . | . . . . . . Retrieved Matter . | . . . . . . Parts Self-Destructed . | . . . . . . Prevented . | . . . . . . Kills | -11 -10 -10 -9 -9 -8 ------- Run | Yrd Mat Min Mat Min Mat Combat Hostiles Destroyed 80 | . 11 20 28 . 21 Guns 43 | . 8 3 23 . 9 AOE 36 | . 3 17 5 . 11 Classes Destroyed 14 | . 5 3 2 . 4 Worker 8 | . 1 . 2 . 5 Builder 2 | . . . . . 2 Tunneler 6 | . . 4 . . 2 Hauler 2 | . . . 2 . . Recycler 4 | . . 1 1 . 2 Mechanic 1 | . . . . . 1 Operator 3 | . 1 . 1 . 1 Watcher 10 | . 3 . 3 . 4 Swarmer 14 | . 3 3 6 . 2 Grunt 52 | . 8 15 17 . 12 Protector 1 | . . . . . 1 Sentry 9 | . . . 5 . 4 Hunter 2 | . . . . . 2 Assembled 2 | . . 2 . . . Best Kill Streak 8 | . 6 8 6 . 7 Combat Bots Only 6 | . 5 5 6 . 5 Max Kills in Single Turn 3 | . 1 3 2 . 3 Gunslinging 1 | . . . 1 . . Exploded 2 | . 1 1 1 . 2 Melee . | . . . . . . Uniques/NPCs Destroyed . | . . . . . . Combat | -11 -10 -10 -9 -9 -8 -------- Run | Yrd Mat Min Mat Min Mat Hostile Shots Fired 484 | . 36 71 121 . 256 Missed 132 | . 17 26 28 . 61 Damage Taken 4989 | . 203 540 1130 . 3116 Core 788 | . 7 46 177 . 558 Absorbed by Shields 48 | . . . . . 48 Redirected to Shielding 55 | . . . . . 55 Regen/Repaired (Parts) 61 | . 61 . . . . Core Remaining (%) 77 | 100 . 78 . 55 . Volleys Fired 272 | . 35 58 85 . 94 Largest 2 | . 2 2 2 . 2 Hottest 90 | . 70 50 50 . 90 Shots Fired 387 | . 60 60 129 . 138 Gun 282 | . 55 13 102 . 112 Cannon . | . . . . . . Launcher 105 | . 5 47 27 . 26 Special . | . . . . . . Kinetic 189 | . 27 13 100 . 49 Thermal 28 | . 28 . . . . Explosive 105 | . 5 47 27 . 26 Electromagnetic 65 | . . . 2 . 63 Robot Hit Streak 18 | . 8 6 6 . 18 Robot Miss Streak 7 | . 4 2 7 . 6 Penetration Max . | . . . . . . Secondary Targets 4 | . 2 . 1 . 1 Max Gunslinging Chain 1 | . 1 . 1 . 1 Shots Hit Robots 255 | . 35 29 91 . 100 Core Hits 201 | . 25 46 59 . 71 Critical Kills . | . . . . . . Critical Parts Destroyed . | . . . . . . Critical Strikes 3 | . 1 . . . 2 Burn 1 | . 1 . . . . Corrupt 2 | . . . . . 2 Melee Attacks . | . . . . . . Impact . | . . . . . . Slashing . | . . . . . . Piercing . | . . . . . . Sneak Attacks . | . . . . . . Combat Hostiles . | . . . . . . Follow-up Attacks . | . . . . . . Damage Inflicted 8088 | . 634 1733 2483 . 3238 Guns 3528 | . 393 88 1391 . 1656 Cannons . | . . . . . . Explosions 4547 | . 241 1634 1092 . 1580 Melee . | . . . . . . Ramming 13 | . . 11 . . 2 Kinetic 2437 | . 160 88 1366 . 823 Thermal 485 | . 233 . . . 252 Explosive 4295 | . 241 1634 1092 . 1328 Electromagnetic 858 | . . . 25 . 833 Impact . | . . . . . . Slashing . | . . . . . . Piercing . | . . . . . . Highest Corruption 1 | . . . 1 1 . Average Corruption 1 | . . . 1 1 . Corruption Purged . | . . . . . . Corruption Blocked . | . . . . . . Effects 1 | . . . . 1 . Data Loss (minor) 1 | . . . . 1 . Overload Shots . | . . . . . . Overflow Damage 67 | . . 25 16 . 26 Projectiles . | . . . . . . Explosions 67 | . . 25 16 . 26 Melee . | . . . . . . Knockbacks . | . . . . . . Impact . | . . . . . . Kinetic . | . . . . . . Secondary . | . . . . . . Self-Inflicted Damage 212 | . . 48 38 . 126 Shots 11 | . . 3 2 . 6 Rammed 1 | . . 1 . . . Targets Rammed 3 | . . 1 . . 2 Kicked 2 | . . . . . 2 Crushed . | . . . . . . Highest Temperature 204 | . 87 23 26 . 204 Average Temperature 32 | . 31 6 9 . 63 Received Heat Transfer 2184 | . 72 231 426 . 1455 Siege Activations . | . . . . . . Robots Corrupted 1 | . . . . . 1 Combat Hostiles 1 | . . . . . 1 Parts Fried 5 | . . . . . 5 Impact Corruptions . | . . . . . . Robots Melted . | . . . . . . Combat Hostiles . | . . . . . . Parts Melted 2 | . 1 . . . 1 Heat Transferred 977 | . 777 . . . 200 Parts Sabotaged . | . . . . . . Parts Stolen . | . . . . . . Parts Stripped . | . . . . . . Power Chain Reactions 2 | . . . . . 2 Alert | -11 -10 -10 -9 -9 -8 ------- Run | Yrd Mat Min Mat Min Mat Peak Influence 628 | . 321 325 628 244 572 Initial 244 | . . 5 126 244 94 Average 214 | . 83 117 290 244 389 Maximum Alert Level 2 | . 1 1 2 1 2 Low Security (%) 56 | 100 91 79 39 . 16 Level 1 24 | . 8 20 31 100 30 Level 2 18 | . . . 28 . 53 Level 3 . | . . . . . . Level 4 . | . . . . . . Level 5 . | . . . . . . High Security . | . . . . . . Max Security . | . . . . . . Squads Dispatched 13 | . 3 . 6 . 4 Investigation 7 | . 1 . 4 . 2 Extermination . | . . . . . . Reinforcement 4 | . 2 . 2 . . Assault 1 | . . . . . 1 Garrison 1 | . . . . . 1 Intercept . | . . . . . . Searches Triggered . | . . . . . . Construction Impeded . | . . . . . . Haulers Reinforced . | . . . . . . Active Scanning Responses . | . . . . . . Cargo Convoy Interrupts . | . . . . . . Stealth | -11 -10 -10 -9 -9 -8 --------- Run | Yrd Mat Min Mat Min Mat Distress Signals 7 | . 1 1 3 . 2 Communications Jammed . | . . . . . . Distress Signals . | . . . . . . Times Spotted 113 | . 19 20 39 . 35 Peak Tracking Total 6 | . 3 5 4 . 6 Tactical Retreats 1 | . . . . . 1 Traps | -11 -10 -10 -9 -9 -8 ------- Run | Yrd Mat Min Mat Min Mat Traps Triggered 2 | . 1 . 1 . . Indirectly . | . . . . . . Trap Hack Attempts . | . . . . . . Triggered . | . . . . . . Disarmed . | . . . . . . Reprogrammed . | . . . . . . Reused . | . . . . . . Traps Extracted . | . . . . . . Installed . | . . . . . . Triggered . | . . . . . . Machines | -11 -10 -10 -9 -9 -8 ---------- Run | Yrd Mat Min Mat Min Mat Machines Disabled 10 | . 1 1 3 . 5 Max in Single Turn 2 | . 1 1 1 . 2 Garrison Access 1 | . . . . . 1 Machines Repaired . | . . . . . . Machines Dismantled . | . . . . . . Machines Sabotaged . | . . . . . . Overloaded Fab Kills . | . . . . . . Hacking | -11 -10 -10 -9 -9 -8 --------- Run | Yrd Mat Min Mat Min Mat Machines Accessed 15 | . 8 . 5 . 2 Terminals 10 | . 5 . 3 . 2 Fabricators . | . . . . . . Repair Stations 1 | . 1 . . . . Recycling Units 4 | . 2 . 2 . . Scanalyzers . | . . . . . . Garrison Access . | . . . . . . Total Hacks 48 | . 26 . 15 . 7 Successful 24 | . 14 . 7 . 3 Failed 24 | . 12 . 8 . 4 Catastrophic 6 | . 2 . 3 . 1 Database Lockouts . | . . . . . . Manual 4 | . . . 1 . 3 Terminals 37 | . 18 . 12 . 7 Fabricators . | . . . . . . Repair Stations 4 | . 4 . . . . Recycling Units 7 | . 4 . 3 . . Scanalyzers . | . . . . . . Garrison Access . | . . . . . . Terminal Hacks 18 | . 10 . 5 . 3 Record 12 | . 4 . 5 . 3 Robot Analysis 1 | . 1 . . . . Alert Level 1 | . 1 . . . . Locate Traps 1 | . 1 . . . . Maintenance Status 1 | . 1 . . . . Hauler Manifests 1 | . 1 . . . . Zone Layout 1 | . 1 . . . . Fabricator Hacks . | . . . . . . Repair Station Hacks 3 | . 3 . . . . Scan Component 2 | . 2 . . . . Repair 1 | . 1 . . . . Recycling Unit Hacks 3 | . 1 . 2 . . Retrieve Components 3 | . 1 . 2 . . Scanalyzer . | . . . . . . Garrison Access Hacks . | . . . . . . Unauthorized Hacks . | . . . . . . Terminals . | . . . . . . Fabricators . | . . . . . . Repair Stations . | . . . . . . Recycling Units . | . . . . . . Scanalyzers . | . . . . . . Garrison Access . | . . . . . . Data Cores Recovered 1 | . 1 . . . . Used . | . . . . . . Hacking Detections 11 | . 5 . 4 . 2 Full Trace Events 7 | . 2 . 3 . 2 Feedback Events 1 | . . . 1 . . Corruption 1 | . . . 1 . . Feedback Blocked . | . . . . . . Robot Schematics Acquired . | . . . . . . Robots Built . | . . . . . . Authchips . | . . . . . . Time . | . . . . . . Total Robot Build Rating . | . . . . . . Part Schematics Acquired . | . . . . . . Parts Built . | . . . . . . Authchips . | . . . . . . Time . | . . . . . . Total Part Build Rating . | . . . . . . Parts Repaired 1 | . 1 . . . . Time 26 | . 26 . . . . Parts Recycled . | . . . . . . Recycled Matter . | . . . . . . Retrieved Matter . | . . . . . . Retrieved Components 21 | . 9 . 12 . . Parts Scanalyzed . | . . . . . . Part Schematics Acquired . | . . . . . . Parts Damaged . | . . . . . . Bothacking | -11 -10 -10 -9 -9 -8 ------------ Run | Yrd Mat Min Mat Min Mat Used RIF Installer . | . . . . . . Robots Hacked . | . . . . . . Non-combat . | . . . . . . Combat . | . . . . . . Robot Hacks Applied . | . . . . . . Relay Couplers Released . | . . . . . . Fabnet Peak Effective % . | . . . . . . Robots Rewired . | . . . . . . Allies Hacked . | . . . . . . Hacks Repelled . | . . . . . . Allies | -11 -10 -10 -9 -9 -8 -------- Run | Yrd Mat Min Mat Min Mat Total Allies . | . . . . . . Largest Group . | . . . . . . Highest-Rated Group . | . . . . . . Highest-Rated Ally . | . . . . . . Total Orders . | . . . . . . Ally Attacks . | . . . . . . Total Damage . | . . . . . . Kills . | . . . . . . Allies Corrupted . | . . . . . . Allies Melted . | . . . . . . Intel | -11 -10 -10 -9 -9 -8 ------- Run | Yrd Mat Min Mat Min Mat Robot Analysis Total 1 | . 1 . . . . Derelict Logs Recovered 1 | . . . . 1 . Drone Launches . | . . . . . . Drone Recoveries . | . . . . . . Exploration | -11 -10 -10 -9 -9 -8 ------------- Run | Yrd Mat Min Mat Min Mat Turns Passed 5113 | 67 1312 1142 1406 122 1064 Spaces Moved 2045 | 38 562 405 627 76 337 Core 15 | 4 . . . . 11 Treads 1786 | 34 562 405 627 76 82 Legs 209 | . . . . . 209 Wheels 35 | . . . . . 35 Hover . | . . . . . . Flight . | . . . . . . Fastest Speed 50 | 50 160 240 160 160 105 Average Speed 206 | 148 211 240 182 160 220 Slowest Speed 330 | 160 320 240 320 160 330 Overloaded Moves . | . . . . . . Propulsion Burnouts . | . . . . . . Robots Hopped . | . . . . . . Cave-ins Triggered . | . . . . . . Exploration Rate (%) 46 | 4 82 70 54 34 35 Regions Visited 5 Branch Regions 2 Pre-discovered Areas 1 | . . . . 1 . Known Exits Taken . | . . . . . . Unknown Exits Taken 5 | 1 1 1 1 1 . Scrap Searched 2 | . . 2 . . . Spaces Dug 72 | . . 62 . . 10 Terrain Destroyed 651 | . 22 313 137 . 179 Melee . | . . . . . . Projectile . | . . . . . . AOE 651 | . 22 313 137 . 179 Terrain Rammed . | . . . . . . Walls Destroyed . | . . . . . . Machines Disabled . | . . . . . . Actions | -11 -10 -10 -9 -9 -8 --------- Run | Yrd Mat Min Mat Min Mat Total 2548 | 49 627 517 759 77 519 Wait 46 | . . 35 . . 11 Move 2040 | 37 561 404 626 75 337 Hop . | . . . . . . Pick Up 79 | 6 15 9 25 1 23 Fast Attach 1 | . . . . . 1 Attach 44 | 6 2 1 7 1 27 Detach 2 | . . . . . 2 Swap 31 | . 7 3 9 . 12 Drop 30 | . 7 6 7 . 10 Fire 272 | . 35 58 85 . 94 Melee . | . . . . . . Ram . | . . . . . . Kick 2 | . . . . . 2 Crush 1 | . . 1 . . . Escape Stasis . | . . . . . . Rewire . | . . . . . . Trap . | . . . . . . Miscellaneous . | . . . . . . Route ------- -11/Scrapyard -10/Materials (discovered 4 exits: *Mat x2 / [*Min x2]) -10/Mines -9/Materials (discovered 2 exits: *Mat / [*Min]) -9/Mines -8/Materials (discovered 1 exit: [*Fac]) History --------- Turn | Location | Event 18 | -11/Scrapyard | Discovered new exit (range 15) 68 | -11/Scrapyard | Entered Materials 307 | -10/Materials | Build established: Mutant 354 | -10/Materials | Discovered new exit (range 10) 527 | -10/Materials | Discovered new exit (range 5) 778 | -10/Materials | Repaired Lgt. Treads 836 | -10/Materials | Discovered new exit (range 16) 1049 | -10/Materials | Discovered new exit (range 10) 1380 | -10/Materials | Entered Mines 1547 | -10/Mines | Excavation squad dispatched 1547 | -10/Mines | A large section of the Mines collapsed 1797 | -10/Mines | Excavation squad dispatched 2026 | -10/Mines | Found a hidden stash of uninstalled traps 2047 | -10/Mines | Excavation squad dispatched 2297 | -10/Mines | Excavation squad dispatched 2462 | -10/Mines | Discovered new exit (range 8) 2522 | -10/Mines | Entered Materials 2522 | -9/Materials | Evolved 2 slots: Propulsion x1, Utility x1 3557 | -9/Materials | Discovered new exit (range 16) 3679 | -9/Materials | Build established: Scavenger-Mutant 3828 | -9/Materials | Discovered new exit (range 6) 3928 | -9/Materials | Entered Mines 3954 | -9/Mines | Received a Rocket Launcher from a helpful Derelict 4001 | -9/Mines | Discovered new exit (range 10) 4025 | -9/Mines | Learned location of Zion (-6) 4050 | -9/Mines | Entered Materials 4050 | -8/Materials | Evolved 2 slots: Utility x2 4228 | -8/Materials | Garrison activated, responded to threat 4418 | -8/Materials | Core integrity fell below 50% 4457 | -8/Materials | Lost 14 parts (1p4n5u4w) 4901 | -8/Materials | Build established: Mutant 4925 | -8/Materials | Lost 3 parts (2u1w) 4982 | -8/Materials | Discovered new exit (range 16) 5096 | -8/Materials | Core integrity fell below 20% 5114 | -8/Materials | Destroyed by G-47 Trooper with Particle Gun Last Messages --------------- K-01 Serf collects debris. R-06 Scavenger collects Imp. Ion Engine. K-01 Serf collects debris. Connecting with Terminal... ALERT: Suspicious activity at Terminal M001. Dispatching Investigation squad. Acquired Shield Generator. U-05 Engineer lays Concrete. The unstable cave ceiling collapses. U-05 Engineer lays Concrete. U-05 Engineer builds a Wall. U-05 Engineer lays Concrete. The unstable cave ceiling collapses. Carbon-fiber Leg destroyed. Grenade Launcher destroyed. Critical hit (Burn: +37). Carbon-fiber Leg destroyed. Hvy. EM Pulse Gun destroyed. Shield Generator destroyed. Lgt. Deuterium Engine destroyed. Map ----- +----------------------------------------------------+ | ?????????????????????# ! # "" ######### | | ?????????????????????#! + ## ! | | ?????????????????????# ## # """ # | | ?????????????????????# #### # """ # =% | | ?????????????????????# !#??# # """ ## % | | ?????????????????????######??# # ### " ! | | ??????????????????????????#### ####+## #### "G | | ???????????????+##+######## # ## "" | | ??????????????+ ## | | ??????????????# "T" ######### | | ??????????????# #?????#?? | | ???????????????+## #########?????#?? | | ?????????????????# ##???????????????? | | ?????????????????# #???????????????? | | ?????????????????# #???????????????? | | ?????????????????# ggg # #???????????????? | | ?????????????????# g g# #???????????????? | | ?????????????????# # #???????????????? | | ????????????##+### # #???????????????? | | ??????????? a # #???????????????? | | ??????????? # #???????????????? | | ?????????? # #???????????????? | | ?????????? ######???????????????? | | ?????????? #????????????????????? | | ?????????? ###????????????????????? | | ?????????? @#??????????????????????? | | ???????????#T# ?????????????????????? | | ?????????????# ???????????????????? | | ?????????????# +?????????????????? | | ?????????????# #?????????????????? | | ?????????????# #?????????????????? | | ?????????????###################?????????????????? | | ?????????????????????????????????????????????????? | | ?????????????????????????????????????????????????? | | ?????????????????????????????????????????????????? | | ?????????????????????????????????????????????????? | | ?????????????????????????????????????????????????? | | ?????????????????????????????????????????????????? | | ?????????????????????????????????????????????????? | | ?????????????????????????????????????????????????? | | ?????????????????????????????????????????????????? | | ?????????????????????????????????????????????????? | | ?????????????????????????????????????????????????? | | ?????????????????????????????????????????????????? | | ?????????????????????????????????????????????????? | | ?????????????????????????????????????????????????? | | ?????????????????????????????????????????????????? | | ?????????????????????????????????????????????????? | | ?????????????????????????????????????????????????? | | ?????????????????????????????????????????????????? | +----------------------------------------------------+ Best States ------------- Heat Dissipation 45 Energy Generation 14 Energy Capacity 250 Matter Stores 300 Matter Capacity 300 Sight Range 16 Terrain Scan Range 16 Terrain Scan Density 10 Additional Mass Support 9 Armor Coverage 300 Propulsion Shielding 33 Evasion (%) 40 Targeting Accuracy 5 Recoil Reduction 3 Defensive Hacking 10 Item Schematics ----------------- None Robot Schematics ------------------ None Fabricated ------------ Nothing Alien Tech Used ----------------- None Achievements -------------- None Challenges ------------ None Game ------ Seed AssemblyTripodInterrupter Manual? 0 Play Time 00:54:11 Cumulative 20.8 hours Start 2024.03.31 @ 04:19:50 End 2024.03.31 @ 05:15:07 Sessions 1 Manual Loads 0 Difficulty Rogue Special Mode None Game No. 45 Rogue 42 Adventurer 0 Explorer 3 Win Type - Total 0 Types 0/0/0/0/0/0/0/0/0 Lore% 20 Gallery% 27 Achievement% 23 Wizard Run 0 Options --------- Layout 0 ASCII 0 Keyboard 0 Movement Mouse Keybinds 0 Fullscreen 2 Font 18/SmallcapsGlow Map View 76x50 Zoom Use 0% Tactical HUD 0 Map Filters NONE Filters NONE Steam 1 RUN: ae2900d7-7152-401a-b1ce-99b6e5b84b4e